Workbook

Sheet MATRIZ DE RIESGOS
B2: MATRIZ DE RIESGOS CONTRACTUALES UNIVERSIDAD DE ANTIOQUIA
B3: CLASE DE RIESGO | C3: TIPIFICACION DEL RIESGO | E3: ASIGNACION RESPONSABLE DEL RIESGO | G3: ESTIMACION DEL RIESGO CONTRATO DE MANTENIMIENTO PREVENTIVO Y CORRECTIVO DE LOS SISTEMAS DE AIRE ACONDICIONADO - URABA Y BAJO CAUCA. - DIF-068-2022
C4: No. | D4: DESCRIPCION | E4: CONTRATISTA | F4: UDEA | G4: PROBABILIDAD DE OCURRENCIA | H4: IMPACTO | I4: PRODUCTO | J4: VALORACION Ó NIVEL DE RIESGO (%) | K4: RESULTADO | L4: TOLERANCIA | M4: TRATAMIENTO | N4: ACCIONES DE MITIGACIÓN | O4: PROMEDIO (%) | P4: PONDERACION POR CLASE | Q4: ESTIMACION DEL RIESGO POR CLASE (%)
B5: JURIDICOS, LEGALES, DOCUMENTALES Y REGULATORIOS | C5: 1 | D5: ERRORES Y OLVIDOS INVOLUNTARIOS QUE HAYAN QUEDADO EN LA ESTIMACIÓN DEL PRESUPUESTO | F5: X | G5: 2 | H5: 20 | I5: =+G5*H5 -> 40 | J5: =(IF(I5=5,8,IF(I5=10,17,IF(I5=15,25,IF(I5=20,33,IF(I5=30,50,IF(I5=40,67,IF(I5=60,100,0))))))))/100 -> 0.67 | K5: =IF( I5=0,"NULO",IF(I5<=10, "BAJO",IF((OR(15=I5,I5=20)), "MEDIO",IF( (OR(30=I5,I5<=60)),"ALTO","INDETERMINADO")))) -> ALTO | L5: =IF( I5=0,"NULO",IF(I5=5,"ACEPTABLE", IF(I5=10,"TOLERABLE", IF((OR(15=I5,I5=20)),"MODERADO", IF((OR(30=I5,I5=40)),"IMPORTANTE", IF(I5=60,"INACEPTABLE","INDETERMINADO")))))) -> IMPORTANTE | M5: =TMTO(G5,H5) -> EVITAR EL RIESGO; PREVENIR EL RIESGO; PROTEGER O MITIGAR EL RIESGO; COMPARTIR O TRANSFERIR EL RIESGO | N5: ELABORAR UN PRESUPUESTO CON UNA METODOLOGIA QUE RESPALDE LOS ITEMS A CONTRATAR, VERIFICANDO LAS CANTIDADES Y PROCEDIMIENTOS REQUERIDOS | O5: =AVERAGE(J5:J10) -> 0.36 | P5: =(COUNT(C5:C10)+COUNTBLANK(C5:C10))/(COUNT($C$5:$C$35)+COUNTBLANK($C$5:$C$35)) -> 0.1935483871 | Q5: =+O5*P5 -> 0.06967741935
C6: =+C5+1 -> 2 | D6: CAMBIOS EN LA NORMATIVIDAD QUE FUNDAMENTA LA ESTRUCTURA DEL PRESUPUESTO, GENERANDO UNA VARIACIÓN DEL MISMO DE MANERA SUSTANCIAL | E6: X | F6: X | G6: 1 | H6: 10 | I6: =+G6*H6 -> 10 | J6: =(IF(I6=5,8,IF(I6=10,17,IF(I6=15,25,IF(I6=20,33,IF(I6=30,50,IF(I6=40,67,IF(I6=60,100,0))))))))/100 -> 0.17 | K6: =IF( I6=0,"NULO",IF(I6<=10, "BAJO",IF((OR(15=I6,I6=20)), "MEDIO",IF( (OR(30=I6,I6<=60)),"ALTO","INDETERMINADO")))) -> BAJO | L6: =IF( I6=0,"NULO",IF(I6=5,"ACEPTABLE", IF(I6=10,"TOLERABLE", IF((OR(15=I6,I6=20)),"MODERADO", IF((OR(30=I6,I6=40)),"IMPORTANTE", IF(I6=60,"INACEPTABLE","INDETERMINADO")))))) -> TOLERABLE | M6: PROTEGER O MITIGAR EL RIESGO; COMPARTIR O TRANSFERIR EL RIESGO | N6: EL CONTRATO DEBE CONTAR CON INTERVENTORIA PARA REALIZAR EL CONTROL TECNICO DE LA OBRA DURANTE EL TIEMPO DE EJECUCION. EL INTERVENTOR Y EL CONTRATISTA DEBEN ESTAR ATENTOS A NUEVAS NORMAS QUE SURGAN Y AFECTEN EL PROCEDER DEL CONTRATO, Y SU PRESUPUESTO COMO TAL, ANTES Y DURANTE LA EJECUCIÓN DE DICHO CONTRATO
C7: =+C6+1 -> 3 | D7: ERRORES COMETIDOS POR EL CONTRATISTA EN LA ELABORACION DE LA PROPUESTA (PRECIOS POR DEBAJO DEL MERCADO) O EN DOCUMENTOS ELABORADOS POR EL CONTRATISTA DURANTE LA EJECUCIÓN DEL CONTRATO | E7: X | G7: 2 | H7: 10 | I7: 20 | J7: 0.33 | K7: MEDIO | L7: MODERADO | M7: PREVENIR EL RIESGO; PROTEGER O MITIGAR EL RIESGO; COMPARTIR O TRANSFERIR EL RIESGO | N7: DENTRO DE LOS TERMINOS ESTABLECIDOS EN LA INVITACIÓN SE DEBE ESTABLECER UN PERIÓDO DE OBSERVACIONES A LOS TERMINOS DE REFERENCIA. DURANTE LA REVISIÓN DE LAS PROPUESTAS, SE DEBE VERIFICAR LA REVISIÓN TÉCNICA DE LA PROPUESTA.
C8: 4 | D8: RIESGO DE CORRUPCIÓN: SIEMPRE SUBSISTE LA POSIBILIDAD QUE SE PRESENTEN CONDUCTAS O COMPORTAMIENTOS CALIFICADOS COMO DE CORRUPCIÓN, YA SEA DE LOS SERVIDORES PÚBLICOS DE LA UNIVERSIDAD O DELITOS POR PARTE DE LOS EMPLEADOS DE LA ENTIDAD CONTRATISTA. | E8: X | F8: X | G8: 1 | H8: 20 | I8: =+G8*H8 -> 20 | J8: =(IF(I8=5,8,IF(I8=10,17,IF(I8=15,25,IF(I8=20,33,IF(I8=30,50,IF(I8=40,67,IF(I8=60,100,0))))))))/100 -> 0.33 | K8: =IF( I8=0,"NULO",IF(I8<=10, "BAJO",IF((OR(15=I8,I8=20)), "MEDIO",IF( (OR(30=I8,I8<=60)),"ALTO","INDETERMINADO")))) -> MEDIO | L8: =IF( I8=0,"NULO",IF(I8=5,"ACEPTABLE", IF(I8=10,"TOLERABLE", IF((OR(15=I8,I8=20)),"MODERADO", IF((OR(30=I8,I8=40)),"IMPORTANTE", IF(I8=60,"INACEPTABLE","INDETERMINADO")))))) -> MODERADO | M8: =TMTO(G8,H8) -> PROTEGER O MITIGAR EL RIESGO; COMPARTIR O TRANSFERIR EL RIESGO | N8: REALIZAR LA OBSERVACIÓN DIRECTA DEL PROYECTO: A) POR PARTE DE LA CONTRALORÍA GENERAL DE ANTIOQUIA: AL HACER LA VERIFICACIÓN POSTERIOR DEL CUMPLIMIENTO DE LOS REQUISITOS FORMALES Y DE FONDO DEL PROCESO DE CONTRATACIÓN Y SU LA EJECUCIÓN O DESARROLLO DEL CONTRATO. B) POR PARTE DE AUDITORÍA INSTITUCIONAL: DEPENDENCIA QUE RECIBE Y FORMULA DENUNCIAS DE PRESUNTOS HECHOS DE CORRUPCIÓN. Y QUE PUEDE, EN CUALQUIER MOMENTO, SOLICITAR LA RENDICIÓN DE CUENTAS DEL PROYECTO Y HACERLE SEGUIMIENTO AL MISMO. YA QUE EXISTE UNA SERIE DE PROCESOS A CARGO DE DIFERENTES PERSONAS EN LA INSTITUCIÓN, QUE PROCURAN GARANTIZAR CONTROLES CRUZADOS ASÍ: • ENTRE QUIENES ELABORAN Y QUIENES APRUEBAN EL ESTUDIO PREVIO DE OPORTUNIDAD Y CONVENIENCIA. • ENTRE QUIENES REALIZAN LA SOLICITUD DE NEGOCIACIÓN DIRECTA Y QUIEN ES COMPETENTE PARA SUSCRIBIR EL CONTRATO.
C9: 5 | D9: INCUMPLIMIENTO EN LA EJECUCIÓN DE LAS ACTIVIDADES Y TAREAS DE MANTENIMIENTO PACTADAS EN EL CONTRATO | E9: X | G9: 1 | H9: 20 | I9: 20 | J9: 0.33 | K9: MEDIO | L9: MODERADO | M9: PROTEGER O MITIGAR EL RIESGO; COMPARTIR O TRANSFERIR EL RIESGO | N9: GENERAR POLIZAS DE CUMPLIMIENTO, QUE GARANTICEN LA PLENA EJECUCIÓN DE LAS ACTIVIDADES Y TAREAS QUE ATAÑEN AL CONTRATO EN CUESTION
C10: 6 | D10: INADECUADA PROGRAMACIÓN DE LAS ACTIVIDADES Y TAREAS DEL CONTRATO PARA CIERTAS SEDES DE LA UNIVERSIDAD, SIN PREVIA COORDINACIÓN CON LOS ADMINISTRADORES DE DICHAS DEPENDENCIAS DANDO LUGAR A CONFLICTOS EN EL DESEMPEÑO DE LAS ACTIVIDADES DE LAS SEDES | F10: X | G10: 1 | H10: 20 | I10: 20 | J10: 0.33 | K10: MEDIO | L10: MODERADO | M10: PROTEGER O MITIGAR EL RIESGO; COMPARTIR O TRANSFERIR EL RIESGO | N10: PROYECTAR UN CRONOGRAMA DE MANTENIMIENTO EN COORDINACION CON LAS DIVERSAS DEPENDENCIAS DE LA UNIVERSIDAD DONDE EXISTAN PLANTAS DE EMERGENCIA, CON EL FIN DE NO GENERAR INCONVENIENTES Y SOBRECOSTOS EN EL CONTRATO, POR POSIBLES ADICIONES EN VISITAS O APALZAMIENTOS DE LAS MISMAS
D11: BROTE O EPIDEMIAS CONTAGIO POR VIRUS (COVID 19 U OTROS) | E11: X | F11: X | G11: 2 | H11: 20 | I11: 40 | J11: 0.67 | K11: ALTO | L11: IMPORTANTE | M11: EVITAR EL RIESGO; PREVENIR EL RIESGO; PROTEGER O MITIGAR EL RIESGO; COMPARTIR O TRANSFERIR EL RIESGO | N11: REQUERIR PARA EL INICIO DE LA EJECUCIÓN DE OBRA LA ELABORACION E IMPLEMENTACUION DE LOS PROTOCOLOS DE BIOSEGURIDAD. VIGILANCIA Y SUPERVICIÓN POR PARTE DE LA INTERVENTORIA DEL CUMPLIMIENTO DE LOS PROTOCOLOS DE BIOSEGURIDAD EN TODAS SUS ETAPAS DURANTE LA EJECUCIÓN DEL CONTRATO
B12: SOCIALES Y AMBIENTALES | C12: =+C10+1 -> 7 | D12: DISTURBIOS DE ORDEN PÚBLICO DENTRO DEL ESTABLECIMIENTO EDUCATIVO | E12: X | F12: X | G12: 2 | H12: 10 | I12: =+G12*H12 -> 20 | J12: 0.33 | K12: MEDIO | L12: MODERADO | M12: PREVENIR EL RIESGO; PROTEGER O MITIGAR EL RIESGO; COMPARTIR O TRANSFERIR EL RIESGO | N12: EL INTERVENTOR DEL CONTRATO DEBE VELAR PORQUE EL CONTRATISTA CONOZCA Y MANEJE LOS PROTOCOLOS DE SEGURIDAD Y EVACUACIÓN DE LA DEPENDENCIA EN LA CUAL SE GENERE EL CONFLICTO DE ORDEN PUBLICO. EL INTERVENTOR ENUNCIARÁ LA ACCION A PROCEDER EN CASO DE SURGIR UNA SITUACIÓN DE CONFLICTO , EN BASE A CONSULTA REALIZADA POR EL CONTRATISTA | O12: =AVERAGE(J12:J18) -> 0.19 | P12: =(COUNT(C12:C18)+COUNTBLANK(C12:C18))/(COUNT($C$5:$C$35)+COUNTBLANK($C$5:$C$35)) -> 0.2258064516 | Q12: =+O12*P12 -> 0.04290322581
C13: =+C12+1 -> 8 | D13: DISTURBIOS DE ORDEN PÚBLICO EN ZONAS ALEDAÑAS A LAS DEPENDENCIAS DE LA INSTITUCION EDUCATIVA, O EN LA REGION DE DICHA DEPENDENCIA, Y ACCIDENTES QUE IMPIDAN EL LIBRE DESPLAZAMIENTO DEL CONTRATISTA PARA LLEGAR A DICHO RECINTO Y REALIZAR LAS ACTIVIDADES DE MANTENIMIENTO CONTENIDAS EN EL CONTRATO | E13: X | F13: X | G13: 1 | H13: 10 | I13: =+G13*H13 -> 10 | J13: =(IF(I13=5,8,IF(I13=10,17,IF(I13=15,25,IF(I13=20,33,IF(I13=30,50,IF(I13=40,67,IF(I13=60,100,0))))))))/100 -> 0.17 | K13: =IF( I13=0,"NULO",IF(I13<=10, "BAJO",IF((OR(15=I13,I13=20)), "MEDIO",IF( (OR(30=I13,I13<=60)),"ALTO","INDETERMINADO")))) -> BAJO | L13: =IF( I13=0,"NULO",IF(I13=5,"ACEPTABLE", IF(I13=10,"TOLERABLE", IF((OR(15=I13,I13=20)),"MODERADO", IF((OR(30=I13,I13=40)),"IMPORTANTE", IF(I13=60,"INACEPTABLE","INDETERMINADO")))))) -> TOLERABLE | M13: =TMTO(G13,H13) -> PROTEGER O MITIGAR EL RIESGO; COMPARTIR O TRANSFERIR EL RIESGO | N13: EL INTERVENTOR ENUNCIARÁ LA ACCION A PROCEDER EN CASO DE SURGIR UNA SITUACIÓN DE CONFLICTO O ACCIDENTE , EN BASE A CONSULTA O INFORMACIÓN REALIZADA POR EL CONTRATISTA. EN CASO DE SER POSTERGADAS LAS ACTIVIDADES A REALIZAR EN LAS DEPENDENCIAS A CAUSA DE LOS CONFLICTOS DE ORDEN PÚBLICO Y DICHOS ACCIDENTES EL INTERVENTOR Y EL CONTRATISTA DEBERAN EVALUAR SU REPROGRAMACIÓN Y LOS SOBRECOSTOS QUE ELLO IMPLIQUE
C14: 9 | D14: NO OBTENER LICENCIAS Y PERMISOS AMBIENTALES QUE SE NECESITEN PARA REALIZAR LOS MANTENIMIENTOS Y/O DISPOSICIÓN DE LOS POSIBLES RESIDUOS QUE GENEREN LAS ACTIVIDADES DE MANTENIMIENTO | E14: X | F14: X | G14: 1 | H14: 5 | I14: =+G14*H14 -> 5 | J14: =(IF(I14=5,8,IF(I14=10,17,IF(I14=15,25,IF(I14=20,33,IF(I14=30,50,IF(I14=40,67,IF(I14=60,100,0))))))))/100 -> 0.08 | K14: =IF( I14=0,"NULO",IF(I14<=10, "BAJO",IF((OR(15=I14,I14=20)), "MEDIO",IF( (OR(30=I14,I14<=60)),"ALTO","INDETERMINADO")))) -> BAJO | L14: =IF( I14=0,"NULO",IF(I14=5,"ACEPTABLE", IF(I14=10,"TOLERABLE", IF((OR(15=I14,I14=20)),"MODERADO", IF((OR(30=I14,I14=40)),"IMPORTANTE", IF(I14=60,"INACEPTABLE","INDETERMINADO")))))) -> ACEPTABLE | M14: =TMTO(G14,H14) -> ASUMIR EL RIESGO | N14: DILIGENCIAR PREVIAMENTE LAS LICENCIAS Y PERMISOS CORRESPONDIENTES, COORDINANDO CON LA INGENIERA AMBIENTAL LOS REQUERIMIENTOS NECESARIOS PARA UN CORRECTO DESEMPEÑO DE LAS ACTIVIDADES DE MANTENIMIENTO. APLICAR PROTOCOLOS DE MANEJO Y PLANES AMBIENTALES
C15: 10 | D15: INADECUADA DISPOSICIÓN DE LOS DESECHOS GENEREDOS POR LA EJECUCIÓN DE LA OBRA, EN SITIOS NO AUTIRIZADO SPOR LA AUTORIDAD AMBIENTAL | E15: X | G15: 1 | H15: 10 | I15: 10 | J15: 0.17 | K15: BAJO | L15: TOLERABLE | M15: =TMTO(G15,H15) -> PROTEGER O MITIGAR EL RIESGO; COMPARTIR O TRANSFERIR EL RIESGO | N15: EL CONTRATO DEBE CONTAR CON INTERVENTORIA PARA REALIZAR EL CONTROL TECNICO DE LA OBRA DURANTE EL TIEMPO DE EJECUCION, APLICACIÓN DE PROTOCOLO DE LOS PLANES AMBIENTALES
C16: 11 | D16: INTERRUPCIÓN DEL PROCESO ACADEMICO POR EJECUCIÓN DE LOS TRABAJOS | E16: X | F16: X | G16: 1 | H16: 5 | I16: 5 | J16: 0.08 | K16: BAJO | L16: ACEPTABLE | M16: ASUMIR EL RIESGO | N16: EL CONTRATO DEBE CONTAR CON INTERVENTORIA PARA REALIZAR EL CONTROL TECNICO DE LA OBRA DURANTE EL TIEMPO DE EJECUCION, APLICACIÓN DE PROTOCOLO DE LOS PLANES AMBIENTALES
C17: 12 | D17: PAROS ADMINISTRATIVOS Y ACADEMICOS DE LAS SEDES REGIONALES Y SEDES DE EXTENSIÓN | F17: X | G17: 2 | H17: 10 | I17: 20 | J17: 0.33 | K17: MEDIO | L17: MODERADO | M17: PREVENIR EL RIESGO; PROTEGER O MITIGAR EL RIESGO; COMPARTIR O TRANSFERIR EL RIESGO | N17: EL CONTRATO DEBE CONTAR CON INTERVENTORIA PARA REALIZAR EL CONTROL TECNICO DE LA OBRA DURANTE EL TIEMPO DE EJECUCION, APLICACIÓN DE PROTOCOLO DE LOS PLANES DE EMERGENCIA
C18: 13 | D18: FENOMENOS NATURALES QUE AFECTEN EL SERVICO Y/O LAS ACTIVIDADES DE MANTENIMIENTO CONTENIDAS EN EL CONTRATO | E18: X | F18: X | G18: 1 | H18: 10 | I18: 10 | J18: 0.17 | K18: BAJO | L18: TOLERABLE | M18: =TMTO(G18,H18) -> PROTEGER O MITIGAR EL RIESGO; COMPARTIR O TRANSFERIR EL RIESGO | N18: DAR SEGUIMIENTO AL CRONOGRAMA Y REALIZAR LA RESPECTIVA REPROGRAMACION DE LAS ACTIVIDADES DEL CONTRATO
B19: FINANCIEROS Y ECONOMICOS | C19: =+C18+1 -> 14 | D19: INCUMPLIMIENTO EN EL PAGO DE SALARIOS , PRESTACIONES SOCIALES Y SEGURIDAD SOCIAL AL PERSONAL TECNICO POR PARTE DEL CONTRATISTA | E19: X | G19: 2 | H19: 20 | I19: 40 | J19: 0.67 | K19: ALTO | L19: IMPORTANTE | M19: EVITAR EL RIESGO; PREVENIR EL RIESGO; PROTEGER O MITIGAR EL RIESGO; COMPARTIR O TRANSFERIR EL RIESGO | N19: LA INTERVENTORIA DEL CONTRATO DEBE VELAR POR EL CORRECTO DESEMPEÑO DEL PERSONAL EN LAS ACTIVIDADES DEL CONTRATO SIEMPRE QUE DICHO DESEMPEÑO GENERE CONFLICTOS E INCONVENIENTES DIRECTOS SOBRE LAS ACTIVIDADES DEL MANTENIMIENTO Y POR ENDE DEL CONTRATO, ADEMAS EL PERSONAL DE SEGURIDAD INDUSTRIAL DEBE VERIFICAR EL PAGO DE LA RESPECTIVA SEGURIDAD SOCIAL DEL PERSONAL TECNICO INVOLUCRADO EN LAS ACTIVIDADES DEL CONTRATO. SOLICITAR POLIZA DE AMPARO DE SALARIOS, PRESTACIONES E INDEMNIZACIONES | O19: =AVERAGE(J19:J27) -> 0.38 | P19: =(COUNT(C19:C27)+COUNTBLANK(C19:C27))/(COUNT($C$5:$C$35)+COUNTBLANK($C$5:$C$35)) -> 0.2903225806 | Q19: =+O19*P19 -> 0.1103225806
C20: =+C19+1 -> 15 | D20: INCUMPLIMIENTO DE LAS ACTIVIDADES PLANTEADAS EN EL CONTRATO POR PARTE DEL CONTRATISTA | E20: X | G20: 2 | H20: 20 | I20: =+G20*H20 -> 40 | J20: =(IF(I20=5,8,IF(I20=10,17,IF(I20=15,25,IF(I20=20,33,IF(I20=30,50,IF(I20=40,67,IF(I20=60,100,0))))))))/100 -> 0.67 | K20: =IF( I20=0,"NULO",IF(I20<=10, "BAJO",IF((OR(15=I20,I20=20)), "MEDIO",IF( (OR(30=I20,I20<=60)),"ALTO","INDETERMINADO")))) -> ALTO | L20: =IF( I20=0,"NULO",IF(I20=5,"ACEPTABLE", IF(I20=10,"TOLERABLE", IF((OR(15=I20,I20=20)),"MODERADO", IF((OR(30=I20,I20=40)),"IMPORTANTE", IF(I20=60,"INACEPTABLE","INDETERMINADO")))))) -> IMPORTANTE | M20: =TMTO(G20,H20) -> EVITAR EL RIESGO; PREVENIR EL RIESGO; PROTEGER O MITIGAR EL RIESGO; COMPARTIR O TRANSFERIR EL RIESGO | N20: SOLICITAR POLIZAS DE CUMPLIMIENTO DEL CONTRATO
C21: 16 | D21: DAÑOS A TERCEROS O A PROPIEDAD DE LA INSTITUCION EDUCATIVA EN CADA UNA DE SUS DEPENDENCIAS AL MOMENTO DE REALIZAR LAS ACTIVIDADES DE MANTENIMIENTO | E21: X | G21: 1 | H21: 10 | I21: 10 | J21: 0.17 | K21: BAJO | L21: TOLERABLE | M21: PROTEGER O MITIGAR EL RIESGO; COMPARTIR O TRANSFERIR EL RIESGO | N21: SOLICITAR PÓLIZAS DE RESPONSABILIDAD CIVIL EXTRACONTRACTUAL Y DE CALIDAD DEL SERVICIO
C22: 17 | D22: NO PREVER LOS COSTOS DE FINANCIACION EN QUE DEBE INCURRIR DURANTE LA EJECUCIÓN DE LAS ACTIVIDADES DE MANTENIMIENTO CONSIGNADAS EN EL CONTRATO | E22: X | G22: 1 | H22: 10 | I22: =+G22*H22 -> 10 | J22: =(IF(I22=5,8,IF(I22=10,17,IF(I22=15,25,IF(I22=20,33,IF(I22=30,50,IF(I22=40,67,IF(I22=60,100,0))))))))/100 -> 0.17 | K22: =IF( I22=0,"NULO",IF(I22<=10, "BAJO",IF((OR(15=I22,I22=20)), "MEDIO",IF( (OR(30=I22,I22<=60)),"ALTO","INDETERMINADO")))) -> BAJO | L22: =IF( I22=0,"NULO",IF(I22=5,"ACEPTABLE", IF(I22=10,"TOLERABLE", IF((OR(15=I22,I22=20)),"MODERADO", IF((OR(30=I22,I22=40)),"IMPORTANTE", IF(I22=60,"INACEPTABLE","INDETERMINADO")))))) -> TOLERABLE | M22: =TMTO(G22,H22) -> PROTEGER O MITIGAR EL RIESGO; COMPARTIR O TRANSFERIR EL RIESGO | N22: EL CONTRATO DEBE CONTAR CON INTERVENTORIA PARA REALIZAR EL CONTROL FINACIERO DE LA OBRA DURANTE EL TIEMPO DE EJECUCION.
C23: 18 | D23: PERDIDADS ECONOMICAS ANTE FALLAS DEL EQUIPO COMO CONSECUENCIAS DE UN MAL PROCEDIMIENTO EN LAS ACTIVIDADES DE MANTENIMIENTO | E23: X | G23: 1 | H23: 20 | I23: 20 | J23: 0.33 | K23: MEDIO | L23: MODERADO | M23: PROTEGER O MITIGAR EL RIESGO; COMPARTIR O TRANSFERIR EL RIESGO | N23: SOLICITAR PÓLIZAS DE CALIDAD Y CORRECTO FUNCIONAMIENTO DE LOS BIENES Y EQUIPOS SUMINISTRADOS, ADEMAS DE LA PÓLIZA DE CALIDAD DEL SERVICIO. IGUALMENTE INTERVENTORIA DEBE VELAR POR LA CONTRATACIÓN DE PERSONAL CALIFICADO Y CERTIFICADO PARA EL DESARROLLO DE LAS ACTIVIDADES DEL CONTRATO, ADEMAS DEL MANEJO DE PROTOCOLOS Y PROCEDIMIENTOS ADECUADOS PARA DICHA LABOR
C24: 19 | D24: FLUCTUACIÓN DEL COSTO DE LOS MATERIALES | E24: X | G24: 2 | H24: 10 | I24: 20 | J24: 0.33 | K24: MEDIO | L24: MODERADO | M24: =TMTO(G24,H24) -> PREVENIR EL RIESGO; PROTEGER O MITIGAR EL RIESGO; COMPARTIR O TRANSFERIR EL RIESGO | N24: EL CONTRATO ES POR PRECIOS NO REAJUSTABLES
C25: 20 | D25: FLUCTUACIÓN DE LAS TASAS DE INTERES, TASAS DE CAMBIO INTERES, VARIACION CAMBIARIA Y FINANCIERAS, POR CAUSAS MICRO Y MACRO EN PROYECTOS FINANCIADOS CON CRÉDITOS | F25: X | G25: 1 | H25: 5 | I25: 5 | J25: 0.08 | K25: BAJO | L25: ACEPTABLE | M25: ASUMIR EL RIESGO | N25: EL CONTRATO CUENTA CON LOS RECURSOS QUE GARANTIZA LA EJECUCIÓN, SEBE RESPALDAR MEDIANTE CDP. LO ANTERIOR IMPLICA QUE NO SE DEBEN BUSCAR OTRAS FUENTES DE FINACIACION
C26: 21 | D26: INSOLVENCIA DEL CONTRATISTA | E26: X | F26: X | G26: 1 | H26: 20 | I26: 20 | J26: 0.33 | K26: MEDIO | L26: MODERADO | M26: PROTEGER O MITIGAR EL RIESGO; COMPARTIR O TRANSFERIR EL RIESGO | N26: EL CONTRATO DEBE CONTAR CON INTERVENTORIA PARA REALIZAR EL CONTROL FINANCIERO DE LA OBRA DURANTE EL TIEMPO DE EJECUCION. SE DEBEN SOLICITAR INDICES FINANCIEROS PARA LOS CRITERIOS DE EVALUACION, QUE GARANTICEN SOLIDEZ FINACIERA.
C27: 22 | D27: FLUCTUACION DEL DÓLAR | E27: X | F27: X | G27: 2 | H27: 20 | I27: 40 | J27: 0.67 | K27: ALTO | L27: IMPORTANTE | M27: EVITAR EL RIESGO; PREVENIR EL RIESGO; PROTEGER O MITIGAR EL RIESGO; COMPARTIR O TRANSFERIR EL RIESGO | N27: EL CONTRATO INCLUYE SUMINISTRO DE MATERIALES POR PARTE DEL CONTRATISTA, EL CUAL SOLO PUEDE VARIAR CON EL CAMBIO DE VIGENCIA FISCAL CADA AÑO, TENIENDO EN CUENTE EL IPC CALCULADO POR EL GOBIERNO NACIONAL. ( DENTRO DE ESTE CALCULO HECHO POR EL GOBIERNO ENTRE OTROS FACTORES SE TIENE EN CUENTA LA FLUTUACION DEL DOLAR)
B28: TECNICOS, OPERATIVOS Y DE EJECUCION | C28: =+C27+1 -> 23 | D28: MAL PROCEDIMIENTO EN LAS ACTIVIDADES DE MANTENIMIENTO QUE INCURRA EN GENERACION DE FALLAS DEL EQUIPO O EN FALLAS ELECTRICAS DEL SISTEMA | E28: X | G28: 1 | H28: 10 | I28: 10 | J28: 0.17 | K28: BAJO | L28: TOLERABLE | M28: PROTEGER O MITIGAR EL RIESGO; COMPARTIR O TRANSFERIR EL RIESGO | N28: EXIGIR PROTOCOLOS DE MANTENIMIENTO, Y MANO DE OBRA CALIFICADA. ADEMAS DE SOLICITAR PÓLIZAS DE CALIDAD Y CORRECTO FUNCIONAMIENTO DE LOS BIENES Y EQUIPOS SUMINISTRADOS, Y LA PÓLIZA DE CALIDAD DEL SERVICIO. | O28: =AVERAGE(J28:J35) -> 0.47875 | P28: =(COUNT(C28:C35)+COUNTBLANK(C28:C35))/(COUNT($C$5:$C$35)+COUNTBLANK($C$5:$C$35)) -> 0.2580645161 | Q28: =+O28*P28 -> 0.1235483871
C29: =+C28+1 -> 24 | D29: MALA O REGULAR CALIDAD DE LOS TRABAJOS REALIZADOS EN LAS ACTIVIDADES DE MANTENIMIENTO CONSIGNADAS EN EL CONTRATO | E29: X | G29: 1 | H29: 20 | I29: =+G29*H29 -> 20 | J29: =(IF(I29=5,8,IF(I29=10,17,IF(I29=15,25,IF(I29=20,33,IF(I29=30,50,IF(I29=40,67,IF(I29=60,100,0))))))))/100 -> 0.33 | K29: =IF( I29=0,"NULO",IF(I29<=10, "BAJO",IF((OR(15=I29,I29=20)), "MEDIO",IF( (OR(30=I29,I29<=60)),"ALTO","INDETERMINADO")))) -> MEDIO | L29: =IF( I29=0,"NULO",IF(I29=5,"ACEPTABLE", IF(I29=10,"TOLERABLE", IF((OR(15=I29,I29=20)),"MODERADO", IF((OR(30=I29,I29=40)),"IMPORTANTE", IF(I29=60,"INACEPTABLE","INDETERMINADO")))))) -> MODERADO | M29: =TMTO(G29,H29) -> PROTEGER O MITIGAR EL RIESGO; COMPARTIR O TRANSFERIR EL RIESGO | N29: EL INTERVENTOR VELARÁ POR LA VERIFICACION DE LA CALIDAD DE LOS TRABAJOS REALIZADOS A LOS EQUIPOS, IGUALMENTE EXIGIRÁ EL CUMPLIMIENTO DE LOS PROTOCOLOS DE MANTENIMIENTO Y LA CONTRATACIÓN DE MANO DE OBRA CALIFICADA Y CERTIFICADA. IGUALMENTE SOLICITAR PÓLIZAS DE CALIDAD Y CORRECTO FUNCIONAMIENTO DE LOS BIENES Y EQUIPOS SUMINISTRADOS, Y LA PÓLIZA DE CALIDAD DEL SERVICIO.
C30: 25 | D30: ACCIDENTALIDAD PRESENTADA EN LA EJECUCION DE TRABAJOS EN ALTURAS QUE ESTEN RELACIONADOS CON LAS ACTIVIDADES DE MANTENIMIENTO | E30: X | F30: X | G30: 2 | H30: 20 | I30: =+G30*H30 -> 40 | J30: =(IF(I30=5,8,IF(I30=10,17,IF(I30=15,25,IF(I30=20,33,IF(I30=30,50,IF(I30=40,67,IF(I30=60,100,0))))))))/100 -> 0.67 | K30: =IF( I30=0,"NULO",IF(I30<=10, "BAJO",IF((OR(15=I30,I30=20)), "MEDIO",IF( (OR(30=I30,I30<=60)),"ALTO","INDETERMINADO")))) -> ALTO | L30: =IF( I30=0,"NULO",IF(I30=5,"ACEPTABLE", IF(I30=10,"TOLERABLE", IF((OR(15=I30,I30=20)),"MODERADO", IF((OR(30=I30,I30=40)),"IMPORTANTE", IF(I30=60,"INACEPTABLE","INDETERMINADO")))))) -> IMPORTANTE | M30: =TMTO(G30,H30) -> EVITAR EL RIESGO; PREVENIR EL RIESGO; PROTEGER O MITIGAR EL RIESGO; COMPARTIR O TRANSFERIR EL RIESGO | N30: EXIGIR LOS CERTIFICADOS Y PERMISOS DE TRABAJOS EN ALTURAS, PREVIA VERIFICACIÓN DE LA AUTENTICIDAD DE DICHOS CERTIFICADOS
C31: 26 | D31: ACCIDENTALIDAD PRESENTADA EN EL SITIO DE TRABAJO POR FALTA O DEFICIENCIA DEL SISTEMA DE SEGURIDAD INDUSTRIAL, Y DEBIDO A CIRCUNSTANCIAS ADVERSAS Y PELIGROSAS | E31: X | F31: X | G31: 1 | H31: 20 | I31: =+G31*H31 -> 20 | J31: =(IF(I31=5,8,IF(I31=10,17,IF(I31=15,25,IF(I31=20,33,IF(I31=30,50,IF(I31=40,67,IF(I31=60,100,0))))))))/100 -> 0.33 | K31: =IF( I31=0,"NULO",IF(I31<=10, "BAJO",IF((OR(15=I31,I31=20)), "MEDIO",IF( (OR(30=I31,I31<=60)),"ALTO","INDETERMINADO")))) -> MEDIO | L31: =IF( I31=0,"NULO",IF(I31=5,"ACEPTABLE", IF(I31=10,"TOLERABLE", IF((OR(15=I31,I31=20)),"MODERADO", IF((OR(30=I31,I31=40)),"IMPORTANTE", IF(I31=60,"INACEPTABLE","INDETERMINADO")))))) -> MODERADO | M31: =TMTO(G31,H31) -> PROTEGER O MITIGAR EL RIESGO; COMPARTIR O TRANSFERIR EL RIESGO | N31: IMPLEMENTACIÓN DEL SISTEMA DE SEGURIDAD Y SALUD EN EL TRABAJO
C32: 27 | D32: ACCIDENTALIDAD PRESENTADA POR MANIPULACIÓN DE ENERGIAS PELIGROSAS | E32: X | F32: X | G32: 3 | H32: 20 | I32: =+G32*H32 -> 60 | J32: =(IF(I32=5,8,IF(I32=10,17,IF(I32=15,25,IF(I32=20,33,IF(I32=30,50,IF(I32=40,67,IF(I32=60,100,0))))))))/100 -> 1 | K32: =IF( I32=0,"NULO",IF(I32<=10, "BAJO",IF((OR(15=I32,I32=20)), "MEDIO",IF( (OR(30=I32,I32<=60)),"ALTO","INDETERMINADO")))) -> ALTO | L32: =IF( I32=0,"NULO",IF(I32=5,"ACEPTABLE", IF(I32=10,"TOLERABLE", IF((OR(15=I32,I32=20)),"MODERADO", IF((OR(30=I32,I32=40)),"IMPORTANTE", IF(I32=60,"INACEPTABLE","INDETERMINADO")))))) -> INACEPTABLE | M32: =TMTO(G32,H32) -> EVITAR EL RIESGO; PREVENIR EL RIESGO; PROTEGER O MITIGAR EL RIESGO; COMPARTIR O TRANSFERIR EL RIESGO | N32: IMPLEMENTACIÓN DEL SISTEMA DE SEGURIDAD Y SALUD EN EL TRABAJO. EXIGIR PERSONAL CALIFICADO Y ACREDITADO ADEMAS DE LOS PROTOCOLOS DE SEGURIDAD PARA DICHA TAREA
C33: 28 | D33: DISEÑOS O ESTUDIOS DEFINITIVOS (GENERALES Y ESPECIFICOS), DEFICIENTES O INCOMPLETOS, EJECUTADOS POR LA ENTIDAD CONTRATANTE | F33: X | G33: 2 | H33: 20 | I33: =+G33*H33 -> 40 | J33: =(IF(I33=5,8,IF(I33=10,17,IF(I33=15,25,IF(I33=20,33,IF(I33=30,50,IF(I33=40,67,IF(I33=60,100,0))))))))/100 -> 0.67 | K33: =IF( I33=0,"NULO",IF(I33<=10, "BAJO",IF((OR(15=I33,I33=20)), "MEDIO",IF( (OR(30=I33,I33<=60)),"ALTO","INDETERMINADO")))) -> ALTO | L33: =IF( I33=0,"NULO",IF(I33=5,"ACEPTABLE", IF(I33=10,"TOLERABLE", IF((OR(15=I33,I33=20)),"MODERADO", IF((OR(30=I33,I33=40)),"IMPORTANTE", IF(I33=60,"INACEPTABLE","INDETERMINADO")))))) -> IMPORTANTE | M33: =TMTO(G33,H33) -> EVITAR EL RIESGO; PREVENIR EL RIESGO; PROTEGER O MITIGAR EL RIESGO; COMPARTIR O TRANSFERIR EL RIESGO | N33: SE DEBE CONTAR CON LOS DISEÑOS ACTUALIZADOS PARA SER ENTREGADOS A LA FIRMA CONTRATISTA
C34: 29 | D34: PERDIDAD DE INFORMACIÓN DE INVESTIGACIONES Y DESARRROLLO TECNOLOGICOS, POR INADECUADAS PRACTICAS DE MANTENIMIENTO | E34: X | G34: 1 | H34: 20 | I34: 20 | J34: 0.33 | K34: MEDIO | L34: MODERADO | M34: PROTEGER O MITIGAR EL RIESGO; COMPARTIR O TRANSFERIR EL RIESGO | N34: EL CONTRATO DEBE CONTAR CON INTERVENTORIA PARA REALIZAR EL CONTROL TÉCNICO DE LA OBRA DURANTE EL TIEMPO DE EJECUCIÓN
C35: 30 | D35: DAÑOS A TERCEROS POR INADECUADAS PRACTICAS DE MANTENIMIENTO | E35: X | G35: 1 | H35: 20 | I35: 20 | J35: 0.33 | K35: MEDIO | L35: MODERADO | M35: PROTEGER O MITIGAR EL RIESGO; COMPARTIR O TRANSFERIR EL RIESGO | N35: LA INTERVENTORIA DEBE VIGILAR EL CORRECTO Y ADECUADO DESEMPEÑO CON BASE EN LAS PÓLIZAS DE CALIDAD DEL SERVICIO Y RESPONSABILIDAD CIVIL Y EXTRACONTRACTUAL
B36: PORCENTAJE DE ESTIMACIÓN DEL RIESGO | Q36: =SUM(Q5:Q35) -> 0.3464516129
C42: PORCENTAJE DE ESTIMACION DEL RIESGO
C44: PROBABILIDAD | D44: ALTA | F44: 3 | G44: =+F44*G47 -> 15 | H44: 0.25 | I44: =+F44*I47 -> 30 | J44: 0.5 | K44: =+F44*K47 -> 60 | L44: 1
D45: MEDIA | F45: 2 | G45: =+F45*G47 -> 10 | H45: 0.17 | I45: =+F45*I47 -> 20 | J45: 0.33 | K45: =+F45*K47 -> 40 | L45: 0.67
D46: BAJA | F46: 1 | G46: =+F46*G47 -> 5 | H46: 0.08 | I46: =+F46*I47 -> 10 | J46: 0.17 | K46: =+F46*K47 -> 20 | L46: 0.33
D47: VALORACION | G47: 5 | I47: 10 | K47: 20
G48: BAJO | I48: MEDIO | K48: ALTO
G49: IMPACTO
C53: COMBINACIONES | F53: PROBABILIDAD | G53: IMPACTO | H53: PRODUCTO | I53: NIVEL DE RIESGO | J53: RESULTADO | K53: TOLERANCIA | L53: TRATAMIENTO
F54: 1 | G54: 5 | H54: =+F54*G54 -> 5 | I54: 0.08 | J54: BAJO | K54: ACEPTABLE | L54: ASUMIR EL RIESGO
F55: 1 | G55: 10 | H55: 10 | I55: 0.17 | J55: BAJO | K55: TOLERABLE | L55: PROTEGER O MITIGAR EL RIESGO COMPARTIR O TRANSFERIR EL RIESGO
F56: 2 | G56: 5 | H56: 10 | I56: 0.17 | J56: BAJO | K56: TOLERABLE | L56: PREVENIR EL RIESGO
F57: 3 | G57: 5 | H57: 15 | I57: 0.25 | J57: MEDIO | K57: MODERADO | L57: PREVENIR EL RIESGO
F58: 2 | G58: 10 | H58: 20 | I58: 0.33 | J58: MEDIO | K58: MODERADO | L58: PREVENIR EL RIESGO PROTEGER O MITIGAR EL RIESGO COMPARTIR O TRANSFERIR EL RIESGO
F59: 1 | G59: 20 | H59: 20 | I59: 0.33 | J59: MEDIO | K59: MODERADO | L59: PROTEGER O MITIGAR EL RIESGO COMPARTIR O TRANSFERIR EL RIESGO
F60: 3 | G60: 10 | H60: 30 | I60: 0.5 | J60: ALTO | K60: IMPORTANTE | L60: PREVENIR EL RIESGO PROTEGER O MITIGAR EL RIESGO COMPARTIR O TRANSFERIR EL RIESGO
F61: 2 | G61: 20 | H61: 40 | I61: 0.67 | J61: ALTO | K61: IMPORTANTE | L61: EVITAR EL RIESGO PREVENIR EL RIESGO PROTEGER O MITIGAR EL RIESGO COMPARTIR O TRANSFERIR EL RIESGO
F62: 3 | G62: 20 | H62: 60 | I62: 1 | J62: ALTO | K62: INACEPTABLE | L62: EVITAR EL RIESGO PREVENIR EL RIESGO PROTEGER O MITIGAR EL RIESGO COMPARTIR O TRANSFERIR EL RIESGO

Sheet GRAFICA DE RIESGOS
B2: TABULACIÓN Y GRAFICA DEL RIESGO POR CLASE (%)
B4: ITEM | C4: CLASE DE RIESGOS | D4: ESTIMACION DEL RIESGO POR CLASE (%)
B5: 1 | C5: =+'MATRIZ DE RIESGOS'!B5:B10 -> JURIDICOS, LEGALES, DOCUMENTALES Y REGULATORIOS | D5: =+'MATRIZ DE RIESGOS'!Q5 -> 0.06967741935
B6: 2 | C6: SOCIALES y/o AMBIENTALES | D6: =+'MATRIZ DE RIESGOS'!Q12 -> 0.04290322581
B7: 3 | C7: FINANCIEROS y/o ECONOMICOS | D7: =+'MATRIZ DE RIESGOS'!Q19 -> 0.1103225806
B8: 4 | C8: TECNICOS y/o OPERATIVOS y/o DE EJECUCION | D8: =+'MATRIZ DE RIESGOS'!Q28 -> 0.1235483871
B11: TABULACIÓN Y GRAFICA DEL RIESGO GLOBAL (%)
B13: ITEM | C13: RIESGO GLOBAL
B14: 1 | C14: PORCENTAJE DE ESTIMACIÓN DE RIESGO | D14: =SUM(D5:D8) -> 0.3464516129
B15: 2 | C15: PORCENTAJE MARGEN SIN RIESGO | D15: =1 -SUM(D5:D8) -> 0.6535483871
